bitfinex/quotes_SOLUSD_20260201
["timestamp","ask_amount","ask_price","bid_price","bid_amount"]
[1769969937286,8.95702137,103.66,103.63,14.06411035]
[1769969937790,13.06467829,103.64,103.6,9.65203514]
[1769969938004,35.75702137,103.67,103.63,9.64944654]
[1769969938169,8.95702137,103.67,103.64,14.06354007]
[1769969938993,8.95702137,103.66,103.63,4.41488705]
[1769969939290,13.06467829,103.67,103.63,4.41488705]
[1769969939583,13.06467829,103.67,103.63,14.06429516]
[1769969940190,13.06467829,103.67,103.63,4.41488705]
[1769969940191,8.95702137,103.66,103.63,4.41488705]
[1769969940488,22.71115006,103.67,103.63,14.06450183]
[1769969940688,8.95702137,103.67,103.64,4.41488705]
[1769969941192,13.06467829,103.67,103.63,14.06450183]
[1769969941693,22.71086738,103.67,103.63,14.06450183]
[1769969942489,22.71086738,103.67,103.62,24.12626829]
[1769969942490,8.95702137,103.65,103.61,4.41488705]
[1769969942672,8.95702137,103.66,103.62,4.41488705]
[1769969942874,8.95702137,103.66,103.63,9.64970548]
[1769969944095,8.95702137,103.66,103.62,14.06507215]
[1769969945110,8.95702137,103.69,103.64,4.41488705]
[1769969945276,37.17360857,103.7,103.65,4.41488705]
[1769969945471,13.99774098,103.72,103.68,4.41488705]
[1769969945796,13.06467829,103.72,103.68,4.41488705]
[1769969945995,8.95702137,103.74,103.7,4.41488705]
[1769969946302,22.7027458,103.76,103.71,4.41488705]
[1769969946895,22.7027458,103.76,103.71,14.05631604]
[1769969947397,8.95702137,103.74,103.71,4.1079354]
[1769969947693,13.24640931,103.73,103.69,13.75166916]
[1769969947896,4.28938794,103.72,103.69,9.64373376]
[1769969948097,13.24640931,103.73,103.68,4.1079354]
[1769969948283,8.95702137,103.73,103.7,4.1079354]
[1769969948487,13.24640931,103.74,103.7,4.1079354]
[1769969949100,8.95702137,103.74,103.71,4.1079354]
[1769969949399,22.88599338,103.74,103.7,13.75065497]
[1769969949596,18.59660544,103.74,103.7,13.75065497]
[1769969950799,18.59597554,103.75,103.71,4.1079354]
[1769969951101,8.95702137,103.74,103.71,4.1079354]
[1769969951797,18.59719693,103.74,103.7,13.75065497]
[1769969951981,8.95702137,103.73,103.7,4.1079354]
[1769969952184,18.59719693,103.74,103.7,4.1079354]
[1769969952482,18.57940211,103.74,103.7,4.1079354]
[1769969953398,8.93922655,103.72,103.67,9.64558876]
[1769969953599,13.22861449,103.71,103.67,13.75352416]
[1769969953897,18.58242809,103.7,103.66,13.75454673]
[1769969954098,8.93922655,103.69,103.66,4.1079354]
[1769969954407,22.87181603,103.7,103.66,13.75463262]
[1769969954984,13.22861449,103.7,103.67,9.64596455]
[1769969955384,13.22861449,103.7,103.66,13.75438159]
[1769969955710,13.22861449,103.7,103.67,9.64598087]
[1769969955905,8.93922655,103.73,103.69,13.75206694]
[1769969956111,22.86848625,103.74,103.69,9.64413154]
[1769969956296,13.22861449,103.73,103.69,4.1079354]
[1769969956603,8.93922655,103.7,103.67,4.1079354]
[1769969956784,4.28938794,103.71,103.67,13.75345142]
[1769969956785,13.22861449,103.71,103.67,13.75345142]
[1769969956987,13.22861449,103.71,103.67,4.1079354]
[1769969956988,8.93922655,103.7,103.67,4.1079354]
[1769969957303,8.93922655,103.72,103.68,4.1079354]
[1769969958190,8.93922655,103.72,103.68,13.75259491]
[1769969961108,22.86987724,103.73,103.69,4.1079354]
[1769969961307,8.93922655,103.73,103.69,4.1079354]
[1769969961509,45.35904086,103.74,103.69,4.1079354]
[1769969961696,8.93922655,103.73,103.69,4.1079354]
[1769969962308,8.93922655,103.73,103.7,4.1079354]
[1769969963205,22.86916549,103.73,103.68,13.75255359]
[1769969963506,8.93922655,103.72,103.69,4.1079354]
[1769969963891,35.71922655,103.74,103.7,4.1079354]
[1769969964100,8.93922655,103.74,103.7,4.1079354]
[1769969964490,22.86760128,103.75,103.71,13.75020711]
[1769969965104,22.86760128,103.75,103.71,4.1079354]
[1769969965307,8.93922655,103.74,103.71,4.1079354]
[1769969965814,13.92837473,103.75,103.71,4.1079354]
[1769969966110,22.8667361,103.76,103.72,4.1079354]
[1769969966607,8.93922655,103.75,103.72,4.1079354]
[1769969966812,26.78,103.78,103.72,4.1079354]
[1769969966991,8.93922655,103.78,103.73,4.1079354]
[1769969968115,8.93922655,103.78,103.75,4.1079354]
[1769969969213,4.28938794,103.75,103.7,4.1079354]
[1769969969403,8.93922655,103.75,103.72,13.74866618]
[1769969970523,8.93922655,103.75,103.72,4.1079354]
[1769969970812,8.93922655,103.74,103.72,4.1079354]
[1769969971190,8.93922655,103.75,103.72,13.7492474]
[1769969971397,8.93922655,103.75,103.73,4.1079354]
[1769969972017,18.57726792,103.76,103.73,4.1079354]
[1769969972517,18.57726792,103.76,103.72,4.1079354]
[1769969973218,8.93922655,103.75,103.72,4.1079354]
[1769969973527,13.22861449,103.74,103.7,13.75113694]
[1769969973727,33.73210459,103.76,103.69,13.7515759]
[1769969973728,8.93922655,103.73,103.69,13.7515759]
[1769969974009,8.93922655,103.72,103.7,4.1079354]
[1769969974232,8.93922655,103.71,103.68,13.75257391]
[1769969974432,5.36086188,103.75,103.71,4.1079354]
[1769969974593,18.57726792,103.76,103.72,4.1079354]
[1769969974793,8.93922655,103.74,103.71,4.1079354]
[1769969975022,13.22861449,103.75,103.71,13.75011172]
[1769969976297,22.86745101,103.75,103.71,13.75011172]
[1769969976492,13.22861449,103.75,103.71,13.75011172]
[1769969976699,8.93922655,103.76,103.72,4.1079354]
[1769969978302,8.93922655,103.76,103.72,13.74869034]
[1769969978518,22.86602785,103.77,103.73,4.42860419]
[1769969978720,9.63741336,103.77,103.73,4.42860419]
[1769969979097,4.28938794,103.79,103.73,4.42860419]
[1769969979302,18.57448682,103.79,103.74,4.42860419]
[1769969979606,8.93922655,103.77,103.74,4.42860419]
[1769969979803,13.22861449,103.78,103.74,4.42860419]
[1769969980418,8.93922655,103.78,103.74,14.0675512]
[1769969980803,46.9509737,103.79,103.74,14.0675512]
[1769969981424,13.22861449,103.77,103.73,9.64014517]
[1769969981614,13.22861449,103.77,103.74,4.42860419]
[1769969981615,8.93922655,103.77,103.74,4.42860419]
[1769969982434,8.93922655,103.77,103.74,14.06791269]
[1769969982604,22.86478229,103.78,103.74,14.06791269]
[1769969983110,22.86478229,103.78,103.74,4.42860419]
[1769969983310,18.57539435,103.78,103.75,4.42860419]
[1769969985418,8.93922655,103.78,103.75,14.06705035]
[1769969985620,9.63440876,103.8,103.76,4.08137741]
[1769969985813,22.86204982,103.81,103.76,4.08137741]
[1769969986024,8.93922655,103.83,103.78,4.08137741]
[1769969986212,9.63116908,103.83,103.79,4.08137741]
[1769969986410,22.85978357,103.83,103.76,4.08137741]
[1769969986610,8.93922655,103.82,103.77,4.08137741]
[1769969987013,22.85978357,103.83,103.78,4.08137741]
[1769969987527,9.63116908,103.83,103.79,13.71621698]
[1769969987725,18.57039563,103.83,103.79,13.71621698]
[1769969987934,8.93922655,103.82,103.79,4.08137741]
[1769969988429,13.92055702,103.83,103.79,4.08137741]
[1769969988430,18.57039563,103.83,103.79,4.08137741]
[1769969988621,9.13922655,103.84,103.79,4.08137741]
[1769969989136,13.22861449,103.82,103.78,4.08137741]
[1769969989311,8.93922655,103.82,103.78,13.71713072]
[1769969989827,13.22861449,103.79,103.74,24.09701244]
[1769969990137,9.63275218,103.82,103.74,24.09701244]
[1769969990138,13.22861449,103.78,103.74,4.08137741]
[1769969990432,13.22861449,103.78,103.67,4.08137741]
[1769969990433,8.56465879,103.72,103.67,4.08137741]
[1769969990637,8.93922655,103.7,103.67,4.08137741]
[1769969990812,8.93922655,103.73,103.68,4.08137741]
[1769969991013,8.93922655,103.74,103.69,4.08137741]
[1769969991214,4.28938794,103.76,103.69,13.02060396]
[1769969991416,8.93922655,103.76,103.71,4.08137741]
[1769969992135,8.93922655,103.75,103.72,4.08137741]
[1769969992328,18.57756673,103.76,103.72,4.08137741]
[1769969992534,4.28938794,103.77,103.72,4.08137741]
[1769969992535,22.86539949,103.77,103.72,4.08137741]
[1769969992738,8.93922655,103.76,103.72,4.08137741]
[1769969993623,18.57601155,103.77,103.72,4.08137741]
[1769969993822,45.35507099,103.78,103.72,4.08137741]
[1769969994224,45.35507099,103.78,103.73,9.6404126]
[1769969994423,45.35507099,103.78,103.74,4.08137741]
[1769969994637,35.71922655,103.78,103.74,4.08137741]
[1769969994840,8.93922655,103.8,103.75,4.08137741]
[1769969995219,22.86202686,103.81,103.75,4.08137741]
[1769969995541,22.86202686,103.81,103.76,4.08137741]
[1769969995729,8.93922655,103.81,103.76,4.08137741]
[1769969996026,18.5722906,103.81,103.76,4.08137741]
[1769969996344,18.5722906,103.81,103.77,4.08137741]
[1769969996546,8.93922655,103.8,103.77,4.08137741]
[1769969997043,8.93922655,103.8,103.75,13.71976546]
[1769969997226,8.93922655,103.78,103.75,4.08137741]
[1769969997418,8.93922655,103.77,103.75,4.08137741]
[1769969997620,8.93922655,103.77,103.73,13.72160455]
[1769969997830,8.93922655,103.76,103.73,13.72125574]
[1769969998031,8.93922655,103.77,103.73,13.72125574]
[1769969998421,8.93922655,103.77,103.74,13.72070289]
[1769969998635,45.35456635,103.79,103.75,4.08137741]
[1769969998839,35.71922655,103.79,103.75,4.08137741]
[1769969999326,8.93922655,103.79,103.75,4.08137741]
[1769969999526,18.57345267,103.8,103.75,4.08137741]
[1769969999922,8.93922655,103.78,103.75,4.08137741]
[1769970000331,8.93922655,103.76,103.71,4.08137741]
[1769970000660,8.93922655,103.79,103.73,4.08137741]
[1769970000952,8.93922655,103.79,103.72,42.68337327]
[1769970000953,18.57366157,103.8,103.75,4.08137741]
[1769970001344,8.93922655,103.77,103.73,4.08137741]
[1769970001526,8.93922655,103.75,103.7,4.08137741]
[1769970001723,8.93922655,103.77,103.71,4.08137741]
[1769970002043,8.93922655,103.76,103.71,4.08137741]
[1769970002246,8.93922655,103.76,103.71,13.72353644]
[1769970002443,8.93922655,103.75,103.72,4.08137741]
[1769970002748,9.63896773,103.75,103.7,13.72436722]
[1769970003046,8.93922655,103.74,103.71,13.72353]
[1769970003347,8.93922655,103.73,103.69,13.72512869]
[1769970003527,8.93922655,103.74,103.71,4.08137741]
[1769970003726,8.93922655,103.76,103.72,13.72243753]
[1769970003950,8.93922655,103.77,103.73,4.08137741]
[1769970004436,18.57604315,103.77,103.73,4.08137741]
[1769970004633,18.57604315,103.77,103.73,13.72146983]
[1769970004834,8.93922655,103.76,103.73,4.08137741]
[1769970005252,8.93922655,103.75,103.71,13.72328218]
[1769970005451,8.93922655,103.75,103.72,13.72251409]
[1769970005634,8.93922655,103.76,103.72,13.72251409]
[1769970005841,8.93922655,103.75,103.72,4.08137741]
[1769970006752,22.86639182,103.76,103.72,13.72204739]
[1769970006924,8.93922655,103.76,103.72,13.72204739]
[1769970007128,8.93922655,103.76,103.73,4.08137741]
[1769970007330,28.13923653,103.81,103.74,4.28655435]
[1769970007529,8.93922655,103.8,103.75,4.28655435]
[1769970008760,18.57406612,103.79,103.75,4.28655435]
[1769970008945,8.93922655,103.78,103.75,4.28655435]
[1769970009146,8.93922655,103.77,103.74,13.92599552]
[1769970009377,8.93922655,103.78,103.74,13.92599552]
[1769970009842,8.93922655,103.78,103.75,9.63841365]
[1769970010048,0.2,103.84,103.76,4.28655435]
[1769970010246,0.2,103.84,103.81,4.28655435]
[1769970010864,0.2,103.85,103.83,4.28655435]
[1769970011067,0.2,103.89,103.83,4.28655435]
[1769970011068,9.13922655,103.89,103.84,4.28655435]
[1769970011243,9.82566263,103.89,103.84,4.28655435]
[1769970011445,48.67722023,103.98,103.82,33.71219418]
[1769970011446,4.05522874,103.93,103.82,33.71219418]
[1769970011663,5.02906439,103.92,103.9,4.28655435]
[1769970011850,9.61446014,104.01,103.92,4.28655435]
[1769970012062,13.66606562,104.05,104.0,5.01463676]
[1769970012254,4.05522874,104.07,104.01,4.28655435]
[1769970012447,1e-08,104.04,104.01,4.28655435]
[1769970012771,1e-08,104.04,104.0,13.89881289]
[1769970012772,8.88417613,104.11,104.03,13.15944698]
[1769970013075,8.88417613,104.11,104.0,5.01463676]
[1769970013076,8.88417613,104.11,104.04,18.49544449]
[1769970013247,4.5,104.13,104.05,8.88417613]
[1769970013453,6.07455432,104.14,104.04,33.64048789]
[1769970013650,4.5,104.11,104.04,33.64048789]
[1769970013958,4.5,104.1,104.05,8.88417613]
[1769970014163,4.5,104.1,104.04,9.61126836]
[1769970014352,4.5,104.07,104.02,9.61271717]
[1769970014552,4.5,104.02,104.0,5.01463676]
[1769970014850,4.05522874,104.01,103.97,33.66355679]
[1769970015051,8.88417613,104.02,103.98,4.28655435]
[1769970015351,8.88417613,104.03,103.98,4.28655435]
[1769970015573,4.05522874,104.04,103.98,13.17073048]
[1769970015754,48.65728613,104.15,103.98,13.17073048]
[1769970015755,6.01715229,104.21,104.03,8.88417613]
[1769970015951,8.88417613,104.18,104.09,0.51986655]
[1769970016153,4.5,104.19,104.11,8.88417613]
[1769970016550,4.5,104.19,104.13,8.88417613]
[1769970016854,0.3196489,104.23,104.17,11.57937624]
[1769970017053,8.88417613,104.26,104.19,1.97968344]
[1769970017265,8.88417613,104.26,104.16,0.28432314]
[1769970017266,26.74,104.26,104.16,0.28432314]
[1769970017579,8.88417613,104.17,104.09,0.51986655]
[1769970017752,26.74,104.19,104.1,9.60614793]
[1769970017952,48.021602,104.29,104.1,9.60614793]
[1769970018169,5.36086188,104.29,104.13,1.66003454]
[1769970018347,8.88417613,104.22,104.16,4.28655435]
[1769970018548,8.88417613,104.2,104.14,4.28655435]
[1769970018755,4.05522874,104.23,104.17,4.28655435]
[1769970018987,8.88417613,104.2,104.15,13.88809059]
[1769970019158,12.93940487,104.22,104.16,4.28655435]
[1769970019354,12.93940487,104.22,104.11,4.27527085]
[1769970019355,4.05522874,104.18,104.12,24.00861685]
[1769970019573,8.88417613,104.16,104.12,9.604232]
[1769970019777,4.05522874,104.17,104.11,4.28655435]
[1769970020079,12.93940487,104.19,104.12,4.28655435]
[1769970020257,12.93940487,104.15,104.09,4.8064209]
[1769970020571,12.93940487,104.16,104.09,4.8064209]
[1769970020772,4.05522874,104.15,104.09,0.51986655]
[1769970021073,12.93940487,104.12,104.06,4.28655435]
[1769970021258,12.93940487,104.11,104.08,9.60793602]
[1769970021456,12.93940487,104.11,104.06,4.28655435]
[1769970021751,4.05522874,104.08,104.01,13.17073048]
[1769970021955,4.27527085,104.12,104.0,8.88417613]
[1769970021956,12.93940487,104.06,104.0,8.88417613]
[1769970022155,4.05522874,104.06,104.0,4.28655435]
[1769970022358,8.88417613,104.06,104.0,4.28655435]
[1769970022559,8.88417613,104.06,103.99,42.54125854]
[1769970022560,9.59416674,104.23,104.05,17.76835226]
[1769970022761,6.0931547,104.31,104.21,4.27527085]
[1769970022960,6.0931547,104.31,104.24,5.00750088]
[1769970023278,4.5,104.27,104.24,5.00750088]
[1769970023469,4.5,104.27,104.17,3.18553849]
[1769970023672,4.05522874,104.24,104.18,8.88417613]
[1769970023877,12.93940487,104.22,104.15,3.18553849]
[1769970024061,12.93940487,104.24,104.17,8.88417613]
[1769970024262,12.93940487,104.22,104.14,3.18553849]
[1769970024481,4.05522874,104.22,104.12,3.18553849]
[1769970024784,12.93940487,104.2,104.13,18.48755651]
[1769970024966,4.05522874,104.2,104.13,21.673095]
[1769970025170,4.05522874,104.2,104.13,36.79736984]
[1769970025471,4.05522874,104.2,104.15,8.88417613]
[1769970025669,4.05522874,104.18,104.13,9.60338038]
[1769970025978,4.05522874,104.16,104.08,3.18553849]
[1769970026154,12.93940487,104.16,104.09,32.90157389]
[1769970026358,14.22528069,104.15,104.1,9.60612293]
[1769970026565,18.28050943,104.13,104.07,9.60881658]
[1769970026764,4.05522874,104.13,104.07,14.22528069]
[1769970026973,18.28050943,104.13,104.08,9.60799385]
[1769970027378,14.22528069,104.11,104.05,14.22528069]
[1769970027582,4.05522874,104.12,104.07,9.6086376]
[1769970027871,4.05522874,104.11,104.05,14.22528069]
[1769970028078,4.05522874,104.11,104.07,9.60889559]
[1769970028276,18.28050943,104.11,104.07,9.60850681]
[1769970028482,18.28050943,104.13,104.07,9.60850681]
[1769970028667,18.28050943,104.12,104.07,9.60850681]
[1769970028867,4.05522874,104.12,104.06,23.83512116]
[1769970029168,18.28050943,104.14,104.08,14.22528069]
[1769970029568,18.28050943,104.18,104.11,17.41081918]
[1769970029974,4.05522874,104.18,104.13,14.22528069]
[1769970030158,27.87763036,104.2,104.14,14.22528069]
[1769970030361,18.28050943,104.2,104.14,14.22528069]
[1769970030560,18.28050943,104.19,104.13,14.22528069]
[1769970030864,4.05522874,104.19,104.15,9.60153624]
[1769970031080,13.65314671,104.19,104.13,9.60270703]
[1769970031395,18.28050943,104.18,104.13,9.60266937]
[1769970031557,18.28050943,104.18,104.12,14.22528069]
[1769970031558,4.05522874,104.16,104.11,14.22528069]
[1769970031869,4.05522874,104.18,104.14,23.82755778]
[1769970032068,18.28050943,104.18,104.13,9.60319064]
[1769970032380,18.28050943,104.17,104.11,17.41081918]
[1769970032679,18.28050943,104.17,104.11,14.22528069]
[1769970032978,4.05522874,104.17,104.12,23.82945572]
[1769970033152,1.55522874,104.17,104.12,23.82945572]
[1769970033357,15.78050943,104.17,104.11,23.83035466]
[1769970033554,33.59957086,104.17,104.06,4.28655435]
[1769970033794,14.22528069,104.15,104.09,14.22528069]
[1769970034277,14.22528069,104.16,104.1,18.51183504]
[1769970034454,23.82561953,104.17,104.11,14.22528069]
[1769970034976,14.22528069,104.16,104.11,9.60519358]
[1769970035177,18.28050943,104.16,104.1,18.51183504]
[1769970035357,18.28050943,104.16,104.1,28.11733974]
[1769970035557,4.05522874,104.16,104.11,23.83025464]
[1769970035758,4.05522874,104.16,104.11,47.84331774]
[1769970035990,4.05522874,104.2,104.15,14.22528069]
[1769970036166,36.598413,164.0,104.18,14.22528069]
[1769970036167,4.05522874,104.26,104.18,14.22528069]
[1769970036362,4.05522874,104.24,104.19,14.22528069]
[1769970036560,68.09169161,104.34,104.13,4.27527085]
[1769970036561,4.05522874,104.3,104.23,18.51183504]
[1769970036761,18.28050943,104.3,104.24,14.22528069]
[1769970036970,27.86919592,104.29,104.24,9.59324635]
[1769970037167,13.64391523,104.29,104.24,9.59324635]
[1769970037481,13.64391523,104.29,104.19,14.22528069]
[1769970037482,18.47951817,104.25,104.19,14.22528069]
[1769970037783,18.47951817,104.22,104.16,13.70014004]
[1769970037980,18.47951817,104.22,104.16,27.92542073]
[1769970038778,4.25423748,104.22,104.17,23.82427485]
[1769970039157,13.84934643,104.22,104.17,23.82427485]
[1769970039383,4.25423748,104.24,104.19,14.22528069]
[1769970039580,18.47951817,104.26,104.2,14.22528069]
[1769970039783,5.01082009,104.28,104.22,4.09967234]
[1769970040085,5.01082009,104.28,104.23,4.09967234]
[1769970040291,4.25423748,104.26,104.21,14.22528069]
[1769970040465,18.47951817,104.25,104.2,14.22528069]
[1769970040993,18.47951817,104.22,104.15,4.09967234]
[1769970041169,28.07276452,104.24,104.18,14.22528069]
[1769970041369,4.25423748,104.28,104.23,14.22528069]
[1769970041564,18.47951817,104.27,104.21,18.32495303]
[1769970041784,4.35423748,104.31,104.25,18.32495303]
[1769970041986,4.25423748,104.3,104.25,14.22528069]
[1769970042179,0.1,104.31,104.26,4.09967234]
[1769970042493,0.1,104.31,104.28,14.22528069]
[1769970043074,0.1,104.31,104.29,14.22528069]
[1769970043889,0.1,104.31,104.27,14.22528069]
[1769970044080,4.25423748,104.3,104.24,23.98193031]
[1769970044281,0.1,104.31,104.27,14.22528069]
[1769970044486,4.25423748,104.3,104.25,38.2048955]
[1769970044782,18.47951817,104.29,104.23,14.22528069]
[1769970044968,4.25423748,104.29,104.25,9.59169314]
[1769970045165,4.25423748,104.29,104.24,9.59290657]
[1769970045166,18.47951817,104.29,104.24,9.59290657]
[1769970045692,18.47951817,104.29,104.2,14.22528069]
[1769970045693,18.28454887,104.26,104.2,14.22528069]
[1769970045981,18.28454887,104.25,104.2,9.59632916]
[1769970046189,18.28454887,104.23,104.17,14.22528069]
[1769970046384,18.28454887,104.23,104.18,9.59863666]
[1769970046588,14.22528069,104.22,104.17,23.82479193]
[1769970046772,4.05926818,104.22,104.18,9.59862549]
[1769970046978,27.88050229,104.22,104.17,9.59941971]
[1769970047180,18.28454887,104.21,104.17,9.59941971]
[1769970047575,4.05926818,104.21,104.17,9.59941971]
[1769970047888,18.28454887,104.2,104.15,14.22528069]
[1769970048193,18.28454887,104.2,104.16,9.59980175]
[1769970048370,4.05926818,104.2,104.17,9.59924154]
[1769970049090,27.88165187,104.2,104.16,9.60061443]
[1769970049293,14.22528069,104.19,104.16,9.60061443]
[1769970049480,18.28454887,104.2,104.16,9.60061443]
[1769970049787,4.05926818,104.17,104.11,24.01158959]
[1769970049973,18.28454887,104.16,104.13,9.60274772]
[1769970050177,14.22528069,104.17,104.14,9.60166264]
[1769970050401,18.28454887,104.16,104.1,39.82527397]
[1769970050575,18.28454887,104.16,104.12,9.60376194]
[1769970050903,18.28454887,104.15,104.12,9.60376194]
[1769970051076,14.22528069,104.17,104.11,37.86018442]
[1769970051275,14.22528069,104.18,104.12,14.22528069]
[1769970051593,14.22528069,104.17,104.12,14.22528069]
[1769970051897,14.22528069,104.18,104.12,14.22528069]
[1769970052192,14.22528069,104.25,104.17,18.46717677]
[1769970052486,14.22528069,104.21,104.14,4.24189608]
[1769970052670,14.22528069,104.23,104.17,14.22528069]
[1769970052871,14.22528069,104.22,104.16,14.22528069]
[1769970053198,27.88055693,104.21,104.16,9.60035547]
[1769970053688,4.05926818,104.18,104.13,9.60284865]
[1769970053879,18.28454887,104.18,104.13,9.60300012]
[1769970054077,9.59600806,104.21,104.16,9.60058007]
[1769970054078,4.05926818,104.2,104.16,9.60058007]
[1769970054280,47.96022822,104.26,104.16,23.82586076]
[1769970054281,27.87983659,104.22,104.16,23.82586076]
[1769970054476,27.87983659,104.22,104.17,14.22528069]
[1769970054477,4.05926818,104.22,104.17,14.22528069]
[1769970054682,4.05926818,104.24,104.19,14.22528069]
[1769970055281,27.87812485,104.24,104.19,23.8227347]
[1769970055503,4.05926818,104.23,104.18,23.82372522]
[1769970055795,18.28454887,104.23,104.18,9.59837737]
[1769970055996,18.28454887,104.23,104.18,23.82365806]
[1769970056201,18.28454887,104.23,104.19,9.59784261]
[1769970056371,18.28454887,104.23,104.18,23.82401259]
[1769970056574,4.05926818,104.21,104.18,9.5987319]
[1769970057210,4.05926818,104.21,104.17,47.82420551]
[1769970057503,18.28454887,104.22,104.17,47.82420551]
[1769970058192,18.28454887,104.22,104.17,9.5996928]
[1769970058374,18.28454887,104.21,104.17,9.5996928]
[1769970058577,4.05926818,104.18,104.13,40.88528069]
[1769970058793,4.05926818,104.19,104.16,9.600356]
[1769970059384,4.05926818,104.19,104.15,9.60153624]
[1769970059574,4.05926818,104.18,104.14,9.60241688]
[1769970060198,14.22528069,104.17,104.11,42.47937075]
[1769970060378,33.59255402,104.19,104.09,4.24189608]
[1769970060379,18.28454887,104.14,104.09,4.24189608]
[1769970060582,4.05926818,104.14,104.11,9.60461901]
[1769970060794,18.28454887,104.14,104.1,9.60602729]
[1769970061010,18.28454887,104.14,104.09,4.24189608]
[1769970061172,18.28454887,104.12,104.05,4.44189608]
[1769970061483,18.28454887,104.07,104.05,0.2]
[1769970061674,18.28454887,104.06,104.05,1e-08]
[1769970061874,18.28454887,104.06,104.0,13.85706888]
[1769970061875,4.05926818,104.05,104.0,13.85706888]
[1769970062184,4.05926818,104.05,103.96,26.66]
[1769970062185,14.22528069,104.03,103.98,28.08405276]
[1769970062384,4.05926818,104.06,104.0,13.85711196]
[1769970062694,14.22528069,104.02,103.98,4.24189608]
[1769970062901,14.22528069,104.01,103.96,18.46717677]
[1769970063095,4.05926818,104.04,103.98,14.22528069]
[1769970063299,4.05926818,104.04,104.0,14.22528069]
[1769970063300,13.67152027,104.04,104.0,14.22528069]
[1769970063678,27.89680096,104.04,103.99,28.08288984]
[1769970064079,4.05926818,104.06,104.01,14.22528069]
[1769970064296,24.02112289,104.08,104.03,14.22528069]
[1769970064297,18.28454887,104.08,104.03,14.22528069]
[1769970064473,18.28454887,104.06,104.01,18.46717677]
[1769970064685,14.22528069,104.05,104.0,14.22528069]
[1769970064893,14.22528069,104.07,104.02,18.46717677]
[1769970065087,18.28454887,104.07,104.0,4.24189608]
[1769970065282,27.8952126,104.06,104.0,28.08203706]
[1769970065600,18.28454887,104.04,103.99,14.22528069]
[1769970065804,4.05926818,104.02,103.98,23.84192141]
[1769970065990,4.05926818,104.02,103.97,14.22528069]
[1769970066192,18.28454887,104.02,103.97,23.84329342]
[1769970066595,4.05926818,104.02,103.98,14.22528069]
[1769970066792,4.05926818,104.02,103.97,23.84329342]
[1769970066793,18.28454887,104.02,103.97,23.84329342]
[1769970067202,18.28454887,104.02,103.97,14.22528069]
[1769970067402,27.89835646,104.02,103.97,23.8431288]
[1769970067603,18.53849853,104.04,103.99,14.22528069]
[1769970067805,4.31321784,104.03,103.98,14.22528069]
[1769970068210,18.53849853,104.03,103.97,28.0712026]
[1769970068600,14.22528069,104.01,103.96,23.84406947]
[1769970069317,18.53849853,104.02,103.97,9.61812415]
[1769970069517,28.15226875,104.02,103.97,14.22528069]
[1769970069707,14.22528069,104.0,103.95,170.69236977]
[1769970069916,18.53849853,104.01,103.96,14.22528069]
[1769970070102,4.31321784,103.98,103.95,89.65145732]
[1769970070304,18.49536635,103.96,103.89,18.45335449]
[1769970070497,4.27008566,103.96,103.9,18.45335449]
[1769970070813,14.22528069,103.96,103.92,4.2280738]
[1769970071020,14.22528069,103.94,103.9,4.2280738]
[1769970071393,23.84585563,103.95,103.9,13.85245454]
[1769970071599,14.22528069,103.96,103.91,18.45335449]
[1769970072104,14.22528069,103.95,103.91,4.2280738]
[1769970072498,14.22528069,103.94,103.9,9.62454055]
[1769970073012,14.22528069,103.92,103.89,4.2280738]
[1769970073199,14.22528069,103.92,103.89,13.85355793]
[1769970073399,14.22528069,103.94,103.9,13.85262555]
[1769970073700,14.22528069,103.93,103.9,4.2280738]
[1769970074098,9.62119018,103.94,103.9,9.62463383]
[1769970074299,9.62119018,103.94,103.89,4.2280738]
[1769970074300,14.22528069,103.93,103.89,4.2280738]
[1769970074499,14.28643682,103.93,103.89,4.2280738]
[1769970074720,33.67352806,103.94,103.89,4.2280738]
[1769970074721,14.28643682,103.92,103.89,4.2280738]
[1769970075121,14.28643682,103.93,103.89,13.85362439]
[1769970075418,9.62371282,103.91,103.88,1e-08]
[1769970075625,14.28643682,103.89,103.88,1e-08]
[1769970076603,37.95308055,103.91,103.88,1e-08]
[1769970076820,23.91014964,103.91,103.88,1e-08]
[1769970077625,14.28643682,103.9,103.88,1e-08]
[1769970077823,14.28643682,103.89,103.84,4.2280738]
[1769970078120,14.28643682,103.89,103.83,9.63075678]
[1769970078121,14.28643682,103.87,103.82,147.56795788]
[1769970078327,14.28643682,103.87,103.83,4.2280738]
[1769970078501,14.28643682,103.87,103.82,133.70823681]
[1769970078502,14.28643682,103.9,103.86,4.2280738]
[1769970078701,52.23951737,103.91,103.86,4.2280738]
[1769970078925,23.91014964,103.91,103.87,4.2280738]
[1769970079218,9.62371282,103.91,103.87,4.2280738]
[1769970079722,14.28643682,103.91,103.87,4.2280738]
[1769970079912,14.28643682,103.89,103.85,4.2280738]
[1769970080223,14.28643682,103.88,103.83,4.2280738]
[1769970080418,14.28643682,103.87,103.83,13.85887137]
[1769970080620,14.28643682,103.87,103.84,4.2280738]
[1769970080924,33.68014794,103.92,103.82,4.2280738]
[1769970080925,14.28643682,103.86,103.82,4.2280738]
[1769970081222,14.28643682,103.87,103.82,13.85975555]